bitfinex/quotes_ETHUSD_20240614
["timestamp","ask_amount","ask_price","bid_price","bid_amount"]
[1718348607484,0.07096948,3523.2,3522.1,0.10002392]
[1718348607777,0.07096948,3523.2,3522.1,0.04324834]
[1718348607981,1.672,3522.9,3522.1,0.04324834]
[1718348608179,0.07097073,3522.8,3522.1,0.04324834]
[1718348610562,1.672,3522.9,3522.1,0.10002616]
[1718348611153,4.672,3523.3,3522.1,0.10002616]
[1718348611338,0.07096945,3523.2,3522.1,0.10002616]
[1718348611650,0.07096945,3523.2,3522.2,0.25951262]
[1718348611850,0.07096945,3523.2,3522.3,0.0430543]
[1718348612066,0.07096945,3523.2,3522.3,0.04184511]
[1718348612235,0.07096945,3523.2,3522.0,2.4951]
[1718348612438,0.07096945,3523.2,3522.1,0.04314759]
[1718348612737,1.00948694,3523.1,3522.1,0.04314759]
[1718348612931,0.07096943,3523.0,3522.1,0.04314759]
[1718348615380,1.672,3522.9,3522.1,0.04314759]
[1718348615559,0.07097226,3522.8,3522.1,0.04314759]
[1718348617842,0.07097225,3522.7,3522.1,0.04314759]
[1718348618065,1.672,3522.5,3522.1,0.04314759]
[1718348618280,0.0709813,3522.4,3522.1,0.04314759]
[1718348618483,0.0709813,3522.4,3521.6,2.2724]
[1718348618644,0.0709813,3522.4,3522.2,0.04280446]
[1718348618847,0.0709813,3522.4,3521.6,2.2724]
[1718348619082,0.0709813,3522.4,3521.7,0.04313849]
[1718348619083,0.21507585,3522.3,3521.7,0.04313849]
[1718348619385,1.672,3522.1,3521.3,2.4076]
[1718348619594,0.07098637,3522.0,3521.8,0.04307167]
[1718348619905,0.07098637,3522.0,3521.9,0.04300486]
[1718348620135,0.26679259,3522.0,3521.3,2.4076]
[1718348620412,0.26679259,3522.0,3521.9,0.04300486]
[1718348620566,0.26679259,3522.0,3521.3,2.4076]
[1718348620769,0.07098637,3522.0,3521.9,0.04300486]
[1718348620978,0.07098637,3522.0,3521.3,2.4076]
[1718348621297,0.07098637,3522.0,3521.9,0.04300486]
[1718348621463,0.07098637,3522.0,3521.3,2.4076]
[1718348621663,0.07098637,3522.0,3521.6,0.0432053]
[1718348623386,0.07098637,3522.0,3521.3,2.4076]
[1718348623582,0.07098637,3522.0,3521.7,0.04345799]
[1718348623797,0.26679259,3522.0,3521.3,2.4076]
[1718348624097,0.07098637,3522.0,3521.4,0.04365845]
[1718348624490,0.07098637,3522.0,3521.3,2.4076]
[1718348625005,0.07098637,3522.0,3521.4,0.04365845]
[1718348625375,0.07098637,3522.0,3521.3,2.4076]
[1718348625816,0.26679259,3522.0,3521.4,0.04365845]
[1718348626321,0.26679259,3522.0,3521.5,0.04359162]
[1718348626812,1.672,3521.7,3521.0,2.4833]
[1718348627011,1.672,3521.7,3521.6,0.0435248]
[1718348627482,1.672,3521.7,3521.0,2.4833]
[1718348627814,1.672,3521.7,3521.6,0.0435248]
[1718348627975,1.672,3521.7,3521.0,2.4833]
[1718348628174,1.672,3521.7,3521.6,0.0435248]
[1718348628374,1.672,3521.7,3521.0,2.4833]
[1718348628572,1.672,3521.7,3521.6,0.0435248]
[1718348628811,2.15878062,3521.7,3521.0,2.4833]
[1718348629024,1.672,3521.7,3521.6,0.0435248]
[1718348629191,1.672,3521.7,3521.0,2.4833]
[1718348629391,1.672,3521.7,3521.6,0.0435248]
[1718348629874,1.672,3521.7,3521.0,2.4833]
[1718348630211,1.672,3521.7,3521.6,0.0435248]
[1718348630374,2.15878062,3521.7,3520.7,7.44]
[1718348630800,2.15878062,3521.7,3520.8,0.04405947]
[1718348631006,0.07099885,3521.6,3520.8,0.04405947]
[1718348632019,1.672,3521.3,3520.8,0.04405947]
[1718348632224,1.672,3521.3,3520.2,7.44]
[1718348632225,0.07100657,3521.2,3520.2,9.8092]
[1718348632387,0.07100657,3521.2,3520.9,0.04399262]
[1718348632596,0.07100657,3521.2,3520.2,2.3692]
[1718348632821,1.672,3520.5,3519.6,7.44]
[1718348633120,0.1672,3520.4,3519.7,0.05681634]
[1718348633276,1.672,3520.9,3519.7,0.1020001]
[1718348633626,0.0710182,3520.8,3519.7,0.1020001]
[1718348633818,0.07101821,3520.7,3519.7,0.1020001]
[1718348634883,0.07101821,3520.8,3519.7,0.1020001]
[1718348635088,0.07101821,3520.6,3519.7,0.38565961]
[1718348635607,0.07101821,3520.6,3519.7,0.32884327]
[1718348635929,0.07101821,3520.6,3519.7,0.04518376]
[1718348636132,0.07101827,3520.8,3519.7,0.04518376]
[1718348636286,0.07101858,3520.7,3519.5,2.68799498]
[1718348636486,0.07101858,3520.7,3519.8,0.04564692]
[1718348636721,1.672,3520.5,3519.6,0.0457807]
[1718348636928,0.07102162,3520.4,3519.9,0.04558004]
[1718348637124,0.07102162,3520.4,3519.5,2.68799498]
[1718348637337,0.07102162,3520.4,3520.0,0.04551315]
[1718348637493,0.07102162,3520.4,3519.5,2.68799498]
[1718348637693,0.07102162,3520.4,3520.1,0.04544628]
[1718348637896,0.19173235,3520.3,3519.5,2.68799498]
[1718348638201,0.07102162,3520.4,3520.2,0.0453794]
[1718348638385,0.07102162,3520.4,3519.5,2.68799498]
[1718348638585,0.07102162,3520.4,3520.3,0.04531253]
[1718348638790,0.07102162,3520.4,3519.5,2.68799498]
[1718348639201,0.07102162,3520.4,3519.6,0.0457807]
[1718348639398,3.0,3521.0,3519.6,0.3759775]
[1718348639399,1.672,3520.6,3519.6,0.3759775]
[1718348639613,0.07102037,3520.5,3519.6,0.3759775]
[1718348640232,1.672,3520.9,3519.6,0.3759775]
[1718348640440,1.74301551,3520.9,3519.6,0.3759775]
[1718348640942,1.74301551,3520.9,3519.7,0.05681245]
[1718348641245,2.32414427,3520.9,3519.8,0.363209]
[1718348641540,2.32414427,3520.9,3519.8,0.4089539]
[1718348641744,3.0,3521.0,3519.9,2.2691]
[1718348641969,2.262,3522.0,3520.1,2.2562]
[1718348642242,2.262,3522.0,3520.2,0.05680191]
[1718348642243,1.672,3521.7,3520.2,0.05680191]
[1718348642411,0.38864756,3521.6,3520.3,0.2926549]
[1718348642618,0.07100281,3521.6,3520.3,0.2926549]
[1718348642814,3.07100281,3521.6,3520.3,0.05680224]
[1718348643405,3.07100281,3521.6,3520.2,0.05680391]
[1718348643657,3.07100281,3521.6,3520.3,0.10212797]
[1718348645567,1.672,3521.3,3520.3,0.10212797]
[1718348645741,1.672,3521.3,3520.3,0.33796077]
[1718348646178,3.0,3521.6,3520.3,0.33796077]
[1718348646179,7.44,3522.5,3520.5,2.3069]
[1718348646480,0.07099435,3522.4,3520.7,4.1824]
[1718348646792,5.4953,3523.1,3521.0,4.1824]
[1718348646997,1.672,3522.7,3521.2,2.4764]
[1718348647284,0.07098105,3522.6,3521.3,0.10107163]
[1718348647674,1.672,3522.7,3521.3,1.53451677]
[1718348648476,0.07097627,3522.6,3521.3,1.53451677]
[1718348648782,0.5452739,3522.6,3521.4,0.57169168]
[1718348649111,0.5452739,3522.6,3521.5,0.10079801]
[1718348649250,0.5452739,3522.6,3521.5,0.04401489]
[1718348649649,1.672,3522.3,3521.5,0.04401489]
[1718348649884,0.07098124,3522.2,3521.2,2.4764]
[1718348650090,0.24527936,3522.2,3521.6,0.04380987]
[1718348650296,0.24527936,3522.2,3521.2,2.4764]
[1718348650592,0.07098124,3522.2,3521.7,0.04374305]
[1718348650820,0.07098124,3522.2,3521.3,0.05678796]
[1718348651169,0.07098124,3522.2,3521.4,0.04394351]
[1718348651599,0.07098124,3522.2,3521.2,2.4764]
[1718348651809,0.07098124,3522.2,3521.5,0.04387669]
[1718348652111,0.17429812,3522.1,3521.6,0.04380987]
[1718348652461,0.17429812,3522.1,3521.2,2.4764]
[1718348652793,0.17429812,3522.1,3521.3,0.04401034]
[1718348653995,0.070985,3522.0,3521.3,0.04401034]
[1718348654292,0.17429812,3522.1,3521.3,0.04401034]
[1718348656571,0.07098499,3522.0,3521.3,0.04401034]
[1718348657204,1.672,3521.9,3521.3,0.04401034]
[1718348657402,0.26272505,3521.8,3521.3,0.04401034]
[1718348657602,0.07099707,3521.7,3520.8,2.4778]
[1718348657967,0.07099707,3521.7,3520.9,0.04427769]
[1718348664419,0.07099707,3521.7,3520.9,0.10107567]
[1718348664620,0.07099707,3521.7,3520.9,0.04427769]
[1718348664811,0.56446961,3521.7,3520.9,0.10107567]
[1718348671802,0.07099647,3521.8,3520.9,0.10107567]
[1718348672123,3.0,3521.9,3521.0,2.4949]
[1718348672322,0.17429812,3522.1,3521.2,2.4949]
[1718348672531,0.07099105,3522.0,3521.2,2.4949]
[1718348672691,0.07099105,3522.0,3521.3,0.04397004]
[1718348673832,0.24528914,3522.1,3521.3,0.04397004]
[1718348674043,0.17429812,3522.1,3521.3,0.10076198]
[1718348674191,0.07098993,3522.2,3521.3,0.10076198]
[1718348676827,0.07098993,3522.2,3521.4,2.2812]
[1718348677126,0.07098993,3522.2,3521.5,0.04370389]
[1718348678201,1.672,3522.0,3521.5,0.04370389]
[1718348678525,0.070994,3521.9,3521.4,2.2812]
[1718348678696,0.1742994,3521.8,3521.4,2.2812]
[1718348678897,0.07099401,3521.7,3521.4,2.2812]
[1718348681909,0.07099401,3521.7,3521.0,2.3275]
[1718348682309,0.07099401,3521.7,3520.5,7.44]
[1718348682310,1.672,3521.5,3521.1,0.04404318]
[1718348682625,0.24530319,3521.4,3521.1,0.04404318]
[1718348682832,0.24530319,3521.4,3520.4,2.492]
[1718348683045,0.24530319,3521.4,3521.2,0.04397635]
[1718348683242,0.24530319,3521.4,3520.4,2.492]
[1718348683550,0.24530319,3521.4,3520.5,0.04444428]
[1718348683742,0.42531032,3521.3,3520.5,0.04444428]
[1718348683941,0.07100402,3521.2,3520.5,0.04444428]
[1718348689551,1.672,3521.1,3520.5,0.04444428]
[1718348689730,0.07101015,3521.0,3520.5,0.04444428]
[1718348692741,2.44131015,3521.0,3520.5,0.04444428]
[1718348692942,0.41133102,3520.9,3520.2,7.44]
[1718348693142,0.07101139,3520.8,3520.0,2.2991]
[1718348693351,0.07101139,3520.8,3520.3,0.04511662]
[1718348693352,1.672,3520.7,3520.3,0.04511662]
[1718348693667,0.2864538,3520.6,3519.7,2.4163]
[1718348694044,0.2864538,3520.6,3519.8,0.045451]
[1718348700891,0.698,3520.0,3519.8,0.045451]
[1718348701095,0.698,3520.0,3519.7,2.4163]
[1718348701308,0.698,3520.0,3519.8,0.04564694]
[1718348701513,0.698,3520.0,3519.7,2.4163]
[1718348701716,0.698,3520.0,3519.8,0.04564694]
[1718348701910,0.698,3520.0,3519.7,2.6836095]
[1718348702217,0.698,3520.0,3519.9,0.04558005]
[1718348702378,0.698,3520.0,3519.8,0.04564694]
[1718348702578,0.698,3520.0,3519.7,2.6836095]
[1718348702779,0.698,3520.0,3519.9,0.04558005]
[1718348703215,0.698,3520.0,3519.7,2.6836095]
[1718348703412,0.698,3520.0,3519.9,0.04558005]
[1718348703624,0.698,3520.2,3519.8,0.33968739]
[1718348703826,0.698,3520.2,3519.9,0.04558005]
[1718348704483,7.44,3521.2,3520.1,2.3361]
[1718348704737,3.0,3521.6,3519.5,2.66079498]
[1718348704738,0.698,3520.6,3519.5,1.706]
[1718348705023,4.10051053,3521.1,3518.8,0.24559459]
[1718348705024,2.4485,3519.5,3518.8,0.24559459]
[1718348705318,2.4485,3519.5,3517.5,1.75534388]
[1718348705319,0.698,3519.0,3517.6,0.05684229]
[1718348705492,2.4485,3519.5,3517.7,0.17628423]
[1718348705493,0.698,3518.3,3517.7,0.17628423]
[1718348705816,2.4485,3519.5,3517.7,0.17628423]
[1718348705817,0.698,3517.9,3517.7,0.17628423]
[1718348705986,0.698,3517.9,3517.2,1.706]
[1718348707045,1.677,3518.5,3517.2,1.706]
[1718348710286,0.0710566,3518.4,3517.3,1.43344514]
[1718348713586,3.0,3518.7,3517.4,0.05684873]
[1718348713788,1.677,3518.8,3517.5,1.75307453]
[1718348714090,1.677,3518.8,3517.6,0.05684244]
[1718348714091,1.677,3518.6,3517.6,0.05684244]
[1718348714400,1.677,3518.6,3517.6,1.43344514]
[1718348715209,1.677,3518.6,3517.7,0.04841046]
[1718348716199,2.37865,3518.6,3517.7,0.04841046]
[1718348717026,0.0710532,3518.5,3517.7,0.04841046]
[1718348718121,2.37865,3518.6,3517.7,0.04841046]
[1718348719153,1.677,3518.2,3517.7,0.04841046]
[1718348719297,1.677,3517.8,3517.7,0.04841046]
[1718348719500,1.677,3517.8,3517.1,9.52615346]
[1718348719944,3.370165,3518.5,3517.2,1.43344514]
[1718348720232,1.677,3518.2,3517.2,1.53903482]
[1718348720451,1.677,3518.2,3517.2,1.48218183]
[1718348723139,3.370165,3518.5,3517.2,1.48218183]
[1718348723433,1.677,3518.3,3517.2,1.48218183]
[1718348725338,3.370165,3518.5,3517.2,1.48218183]
[1718348725541,0.07106175,3518.4,3517.2,1.48218183]
[1718348725742,1.677,3518.3,3517.3,0.35683353]
[1718348726111,1.677,3518.3,3517.3,0.40561288]
[1718348728919,1.677,3518.3,3517.3,0.04877935]
[1718348729465,3.0,3518.5,3517.4,3.8022947]
[1718348729737,1.677,3518.9,3517.4,3.8022947]
[1718348729738,3.0,3518.8,3517.4,3.8022947]
[1718348730042,0.4677,3518.8,3517.5,0.60431529]
[1718348730219,0.07105512,3518.8,3517.6,1.49028923]
[1718348730418,0.07105512,3518.8,3517.6,1.53883014]
[1718348731504,1.677,3518.9,3517.6,3.24483014]
[1718348731782,3.0,3519.3,3517.6,3.24483014]
[1718348731783,1.677,3519.1,3517.6,3.24483014]
[1718348731992,0.4677,3519.0,3517.7,0.61125375]
[1718348732278,0.4677,3519.0,3517.8,1.4902846]
[1718348732647,0.4677,3519.0,3517.9,0.0483054]
[1718348732843,0.4677,3519.0,3518.0,0.05683947]
[1718348733038,0.4677,3519.0,3518.0,0.10507791]
[1718348733243,0.49421793,3521.8,3518.1,3.73394514]
[1718348733244,2.3276,3519.8,3518.1,3.73394514]
[1718348733441,2.3276,3520.7,3518.6,1.706]
[1718348733647,0.07102145,3520.6,3518.8,4.0923]
[1718348733852,0.07102145,3520.6,3519.0,1.706]
[1718348733853,0.40756215,3520.5,3519.0,1.706]
[1718348734044,0.07102151,3520.4,3519.1,1.49026235]
[1718348734346,1.74802151,3520.4,3519.1,0.04724541]
[1718348734742,1.677,3520.0,3519.1,0.04724541]
[1718348735044,1.677,3520.0,3519.2,0.04701698]
[1718348735045,0.23873301,3519.9,3519.2,0.04701698]
[1718348735260,0.23873301,3519.9,3518.8,2.3863]
[1718348735458,0.23873301,3519.9,3518.8,3.81974514]
[1718348735659,0.23873301,3519.9,3518.9,0.04721773]
[1718348739778,0.07103301,3519.9,3518.9,0.04721773]
[1718348744804,2.54303301,3519.9,3518.9,0.04721773]
[1718348745081,3.0,3519.8,3518.9,0.04721773]
[1718348745264,0.07103172,3519.7,3518.9,0.04721773]
[1718348749091,3.0,3519.8,3518.9,0.04721773]
[1718348749244,0.7149,3519.8,3518.9,0.04721773]
[1718348749449,3.78593179,3519.8,3518.9,0.04721773]
[1718348751467,1.677,3519.1,3518.9,0.04721773]
[1718348751654,0.07104871,3519.0,3518.0,7.44]
[1718348751854,0.07104871,3519.0,3518.1,0.79127163]
[1718348752055,0.07104871,3519.0,3518.1,0.04727163]
[1718348752275,0.07104871,3519.0,3517.4,9.7656]
[1718348752474,0.07104871,3519.0,3517.6,1.706]
[1718348752650,3.0,3519.5,3518.0,1.706]
[1718348752847,5.324,3519.7,3518.3,4.1725]
[1718348753054,0.84262551,3519.6,3518.4,2.04583762]
[1718348753248,3.84262551,3519.6,3518.4,2.04583762]
[1718348756249,3.07103551,3519.6,3518.4,2.04583762]
[1718348756460,0.07103551,3519.6,3518.4,2.04583762]
[1718348758390,0.07103551,3519.6,3518.4,1.48051594]
[1718348759190,1.677,3519.4,3518.4,1.48051594]
[1718348759494,0.07103917,3519.3,3518.4,1.48051594]
[1718348759895,1.677,3519.4,3518.4,1.48051594]
[1718348761270,0.0710402,3519.3,3518.4,0.0470708]
[1718348761472,0.17480402,3519.2,3518.4,0.0470708]
[1718348761673,0.0710441,3519.1,3518.4,0.0470708]
[1718348761906,0.0710441,3519.1,3517.9,4.0195]
[1718348762092,0.0710441,3519.1,3518.5,0.04710766]
[1718348762290,1.677,3519.0,3517.9,2.3135]
[1718348762597,0.2633345,3518.9,3518.0,0.04744239]
[1718348764369,0.07104969,3518.9,3518.0,0.04744239]
[1718348764988,1.677,3519.0,3518.0,0.04744239]
[1718348766215,3.0,3519.4,3518.1,1.49028509]
[1718348766397,0.07104331,3519.3,3518.1,1.49028509]
[1718348766583,0.07104331,3519.3,3518.2,0.04730848]
[1718348766787,0.84584764,3519.3,3518.3,0.05683466]
[1718348767235,0.84584764,3519.3,3518.4,0.0471746]
[1718348767415,0.77480433,3519.3,3518.5,0.0568337]
[1718348767581,3.0,3519.4,3518.6,2.2932]
[1718348767782,1.677,3519.6,3518.7,0.05683048]
[1718348768094,0.0710381,3519.5,3518.8,0.04690687]
[1718348768289,0.38069958,3519.5,3518.6,2.2932]
[1718348768621,1.677,3519.2,3518.7,0.04697379]
[1718348768775,0.07104785,3519.1,3518.7,0.04697379]
[1718348769094,0.07104785,3519.1,3518.8,0.04690687]
[1718348769300,0.07104785,3519.1,3518.2,7.44]
[1718348769596,2.2683,3519.0,3518.3,0.04729634]
[1718348769809,0.07105005,3518.9,3518.3,0.04729634]
[1718348771180,1.677,3518.8,3518.3,0.04729634]
[1718348771434,0.07105414,3518.7,3518.3,0.04729634]
[1718348771915,0.07105414,3518.7,3517.7,7.44]
[1718348772075,0.47480541,3518.6,3518.4,0.0472294]
[1718348772281,0.47480541,3518.6,3517.7,7.44]
[1718348772282,0.06947943,3518.5,3517.7,7.44]
[1718348772501,0.06947943,3518.5,3517.8,0.04763111]
[1718348772818,0.07105631,3518.7,3517.8,0.04763111]
[1718348775577,0.07105631,3518.7,3517.6,2.4092]
[1718348775779,0.77269194,3518.7,3517.9,0.04756414]
[1718348776107,0.77269194,3518.7,3518.0,0.04749719]
[1718348776108,1.677,3518.4,3518.0,0.04749719]
[1718348776293,0.07106116,3518.3,3517.2,9.8803]
[1718348776616,0.07106116,3518.3,3517.3,1.48141111]
[1718348777206,0.07106117,3518.4,3517.3,1.48141111]
[1718348777516,0.07106117,3518.4,3517.4,0.77138646]
[1718348778004,0.07106117,3518.4,3517.5,0.04783201]
[1718348778518,1.677,3518.5,3517.5,0.04783201]
[1718348778817,1.677,3518.5,3517.6,0.05684895]
[1718348778982,0.07106119,3518.4,3517.5,0.04783201]
[1718348779176,0.07106119,3518.4,3517.7,0.04769807]
[1718348779611,0.07106119,3518.4,3517.5,0.46929636]
[1718348779817,0.07106119,3518.4,3517.8,0.04786184]
[1718348779978,0.07106119,3518.4,3517.3,1.43344514]
[1718348780181,2.34056119,3518.4,3517.9,0.04779488]
[1718348780399,2.34056119,3518.4,3517.3,1.43344514]
[1718348780721,5.34056119,3518.4,3517.3,1.43344514]
[1718348780890,5.34056119,3518.4,3517.4,0.04812972]
[1718348782590,5.34056119,3518.4,3517.5,0.056849]
[1718348782791,3.0,3518.6,3517.5,1.88816653]
[1718348783099,3.0,3518.6,3517.6,0.04799577]
[1718348783303,3.0,3518.6,3517.7,0.0568464]
[1718348783492,2.3425,3518.7,3517.8,0.10513509]
[1718348784390,3.0,3518.8,3518.0,2.2811]
[1718348784748,3.0,3519.1,3518.1,0.48685465]
[1718348784956,4.1643,3519.2,3518.1,0.48685465]
[1718348785163,0.07104897,3519.1,3518.1,0.48685465]
[1718348785642,7.44,3520.0,3518.2,1.49028432]
[1718348785643,4.1499,3519.6,3518.2,1.49028432]
[1718348785827,0.06948964,3519.5,3518.2,1.49028432]
[1718348785997,0.06948964,3519.5,3518.3,0.46799293]
[1718348786196,0.06948964,3519.5,3518.4,0.05683515]
[1718348786619,0.06948964,3519.5,3518.5,0.04762099]
[1718348787327,3.06948964,3519.5,3518.5,0.04762099]
[1718348787864,3.06948964,3519.5,3518.6,0.05683517]
[1718348788124,0.72193896,3519.4,3518.7,0.04742945]
[1718348788290,0.79298021,3519.4,3518.7,0.04742945]
[1718348788794,0.79298021,3519.4,3518.6,0.05683517]
[1718348788795,0.79298021,3519.4,3518.4,0.05683372]
[1718348789429,0.07104401,3519.3,3518.4,0.05683372]
[1718348789646,0.07104403,3519.3,3518.5,0.04756331]
[1718348790141,0.07104403,3519.3,3518.6,0.04749638]
[1718348790631,0.07104166,3519.4,3518.3,0.42013998]
[1718348790818,0.07104166,3519.4,3518.7,0.04742945]
[1718348791026,0.07104166,3519.4,3518.4,0.212614]
[1718348791210,0.07104166,3519.4,3518.8,0.04736252]
[1718348791408,0.07104166,3519.4,3518.4,0.212614]
[1718348791616,0.07104166,3519.4,3518.9,0.0472956]
[1718348791819,0.79313583,3519.4,3518.4,0.212614]
[1718348792021,0.07104166,3519.4,3519.0,0.04722868]
[1718348792220,0.07104166,3519.4,3518.4,0.212614]
[1718348792420,0.07104166,3519.4,3519.1,0.04716176]
[1718348792620,0.07104166,3519.4,3518.3,1.85358512]
[1718348793008,0.07104166,3519.4,3518.4,0.04743698]
[1718348793316,0.07104166,3519.4,3518.4,0.40813919]
[1718348796435,1.677,3519.2,3518.4,0.04743698]
[1718348799809,3.0,3519.5,3518.5,2.2629]
[1718348800011,3.0,3519.5,3518.6,1.43344514]
[1718348800246,1.677,3519.6,3518.6,1.48078863]
[1718348800449,0.07103571,3519.5,3518.7,0.37436886]
[1718348800752,0.07103571,3519.5,3518.8,0.04720963]
[1718348801750,0.07103571,3519.5,3518.7,0.37436886]
[1718348802344,0.07103571,3519.5,3518.8,0.04561554]
[1718348802868,0.07103571,3519.5,3518.8,0.10244623]
[1718348803052,0.07103836,3519.6,3518.8,0.3308022]
[1718348803413,0.07103836,3519.6,3518.8,0.27397151]
[1718348805439,0.07103836,3519.6,3518.5,2.2629]
[1718348805649,0.07103836,3519.6,3518.5,3.69634514]
[1718348805946,0.07103836,3519.6,3518.6,0.04569469]
[1718348806965,0.698,3518.9,3518.6,0.04569469]
[1718348808643,0.698,3518.7,3518.6,0.04569469]
[1718348808949,0.698,3518.7,3518.0,2.3137]
[1718348809156,0.07103836,3519.4,3518.1,1.43344514]
[1718348809460,0.698,3518.7,3518.1,1.43344514]
[1718348809659,0.698,3518.7,3518.2,0.37471451]
[1718348816584,0.698,3518.5,3518.2,0.37471451]
[1718348819638,0.698,3518.5,3518.0,2.3137]
[1718348819839,6.07104677,3519.2,3517.6,2.3719]
[1718348820074,2.3163,3518.6,3517.6,2.3719]
[1718348820276,2.3163,3518.6,3517.3,9.8119]
[1718348820277,0.698,3517.7,3517.3,9.8119]
[1718348820578,0.698,3517.7,3517.3,2.3719]
[1718348820965,3.30269412,3518.5,3517.3,2.3719]
[1718348821277,0.698,3517.7,3517.3,2.3719]
[1718348823173,0.698,3517.9,3517.3,2.3719]
[1718348823344,3.30269412,3518.5,3517.4,0.05685385]
[1718348823546,0.698,3517.9,3517.4,0.05685385]
[1718348823754,3.0,3518.5,3517.5,3.80804514]
[1718348824073,0.698,3518.2,3517.6,0.05684548]
[1718348824575,0.07105857,3518.9,3517.7,1.43344514]
[1718348824749,0.698,3518.4,3517.8,2.5452429]
[1718348824954,0.698,3518.4,3517.9,0.3978688]
[1718348825285,0.698,3518.4,3518.0,0.05684319]
[1718348827542,3.07105399,3519.0,3518.0,0.05684319]
[1718348827773,0.698,3518.7,3518.0,0.05684319]
[1718348828148,0.07105005,3519.2,3518.0,0.05684319]
[1718348828455,0.54089501,3519.1,3518.0,1.49028833]
[1718348828656,0.698,3518.7,3518.1,3.82104514]
[1718348828874,9.8913,3519.7,3518.2,0.0568375]
[1718348829056,9.8913,3519.7,3518.4,2.3876]
[1718348829057,0.698,3519.1,3518.4,2.3876]
[1718348829259,0.698,3519.1,3518.5,1.49027753]
[1718348831000,3.07104009,3519.6,3518.5,1.49027753]
[1718348831283,3.07104009,3519.6,3518.6,0.38778775]
[1718348831473,3.07104009,3519.6,3518.7,0.05683102]
[1718348832446,3.07104009,3519.6,3518.6,0.38778775]
[1718348833979,3.07104009,3519.6,3518.4,2.3876]
[1718348834186,1.676,3519.4,3518.4,2.3876]
[1718348834385,0.07104318,3519.3,3518.4,2.3876]
[1718348834745,3.0,3519.6,3518.6,2.4535]
[1718348834943,0.07104281,3519.5,3518.6,2.4535]
[1718348835185,0.07104281,3519.5,3518.7,0.04588408]
[1718348835398,0.07104281,3519.5,3518.7,0.10271833]
[1718348835863,0.07104011,3519.6,3518.7,0.10271833]
[1718348838498,0.07104011,3519.6,3518.7,1.47932922]
[1718348844941,5.63466575,3520.2,3518.9,2.3241]
[1718348844942,1.676,3520.1,3518.9,2.3241]
[1718348845084,0.07103344,3520.0,3519.0,0.4881684]
[1718348846714,0.07103344,3520.0,3519.0,0.5324112]
[1718348847591,0.07103344,3520.0,3519.0,0.08955872]
[1718348848524,0.07103344,3520.0,3519.1,0.0568268]
[1718348848724,0.07103344,3520.0,3519.2,0.04511013]
[1718348848923,0.07103344,3520.0,3519.0,0.0442428]
[1718348849129,0.07103344,3520.0,3519.1,0.04519143]
[1718348849333,1.06606,3519.9,3519.1,0.04519143]
[1718348849494,0.07103351,3519.8,3519.1,0.04519143]
[1718348850928,0.698,3519.3,3519.1,0.04519143]
[1718348853294,0.0710359,3519.8,3519.1,0.04519143]
[1718348853501,0.07103428,3520.0,3519.1,0.04519143]
[1718348853699,0.698,3519.3,3519.1,0.04519143]
[1718348853933,0.698,3519.3,3519.1,0.2922276]
[1718348855840,0.698,3519.4,3519.1,0.2922276]
[1718348858204,0.698,3519.2,3519.1,0.04519143]
[1718348864522,0.07103636,3520.0,3519.1,0.04519143]
[1718348864712,0.698,3519.5,3519.0,0.1010709]
[1718348864913,0.07103636,3520.0,3519.1,0.04511659]
[1718348865145,0.698,3519.5,3519.1,0.04511659]
[1718348865352,3.07103636,3520.0,3519.1,0.29214534]
[1718348865514,0.698,3519.5,3519.1,0.29214534]
[1718348869719,0.07103352,3520.0,3519.2,0.05682683]
[1718348869921,0.698,3519.6,3519.3,0.04498277]
[1718348870244,0.698,3519.6,3519.2,0.05682683]
[1718348870429,0.698,3519.6,3519.2,0.32404667]
[1718348870629,0.698,3519.6,3519.3,0.04493959]
[1718348871153,0.698,3519.6,3519.2,0.32404667]
[1718348871320,0.698,3519.6,3519.3,0.04493959]
[1718348871515,0.698,3519.6,3519.2,0.32404667]
[1718348871829,0.698,3519.6,3519.3,0.04493959]
[1718348874568,0.698,3519.8,3519.3,0.04493959]
[1718348874920,0.698,3519.8,3519.4,2.4292]
[1718348875234,0.698,3519.8,3519.5,0.27981863]
[1718348875457,0.698,3519.8,3519.5,0.04473381]
[1718348878761,0.07102815,3520.3,3519.5,0.04473381]
[1718348878934,0.698,3519.8,3519.5,0.04473381]
[1718348879132,3.07102814,3520.4,3519.5,0.10155632]
[1718348879333,2.2527,3520.9,3519.6,1.68652077]
[1718348879544,0.698,3520.4,3519.8,2.4952]
[1718348879730,0.698,3520.4,3519.9,0.0568131]
[1718348879930,0.698,3520.4,3519.9,0.10127934]
[1718348880429,2.2527,3520.9,3519.9,0.10127934]
[1718348880430,0.07101674,3520.8,3519.9,0.10127934]
[1718348880651,0.698,3520.5,3519.9,0.10127934]
[1718348881229,3.0,3521.0,3519.9,1.53472448]
[1718348881230,0.071014,3520.9,3519.9,1.53472448]
[1718348881434,0.698,3520.8,3519.9,2.23272448]
[1718348881760,0.698,3520.8,3520.0,0.47279245]
[1718348881925,0.698,3520.8,3520.1,0.0568088]
[1718348882125,3.0,3521.0,3520.1,0.0568088]
[1718348882126,0.698,3520.6,3520.1,0.10114129]
[1718348885034,0.698,3520.4,3520.1,0.04433249]
[1718348885364,2.3267,3520.6,3520.1,0.04433249]
[1718348885667,0.698,3520.2,3519.8,2.4952]
[1718348886045,3.07101748,3520.5,3519.8,2.4952]
[1718348886245,0.698,3520.2,3519.8,2.4952]
[1718348889362,0.698,3520.2,3519.4,8.80425274]
[1718348889534,0.698,3520.2,3519.5,3.93024514]
[1718348889732,0.698,3520.2,3519.6,1.27344979]
[1718348889964,0.698,3520.2,3519.6,2.70689493]
[1718348891840,0.698,3520.3,3519.6,2.70689493]
[1718348895087,0.698,3520.3,3519.7,0.04422303]
[1718348895458,0.698,3520.5,3519.7,0.10103695]
[1718348895665,0.698,3520.5,3519.8,0.47292821]
[1718348895875,0.698,3520.5,3519.9,0.05681361]
[1718348896081,0.698,3520.5,3519.9,0.10090572]
[1718348898972,0.698,3520.5,3519.9,0.04409211]
[1718348899188,0.07101741,3520.8,3519.9,0.04409211]
[1718348899189,0.698,3520.4,3519.9,0.04409211]
[1718348902383,0.698,3520.4,3519.9,0.23913866]
[1718348902581,0.698,3520.2,3519.9,0.23913866]